Cogmind - Beta 13 @@@ ROGUE MODE // 2024.05.05 @ 23:20:05 Player: Sinner6 Result: Destroyed by as-21439 with Assembled Maul Performance ------------- Evolutions (1) 500 Regions Visited (4) 800 Robots Destroyed (58) 290 Value Destroyed (1421) 1421 Prototype IDs (1) 20 Alien Tech Used (0) 0 Bonus (60) 60 TOTAL SCORE: 3091 Bonus ------- Follower Combat Kills 60 Cogmind --------- Core Integrity 0/400 Matter 300/300 Energy 100/100 System Corruption 21% Temperature Cool (0) Movement Core (250) Ox4 Location -9/Mines Parts ------- > --- POWER (1) -------- (None) > --- PROPULSION (3) --- (None) > --- UTILITY (3) ------ Medium Storage Unit > --- WEAPON (2) ------- Particle Cannon > --- INVENTORY (10) --- Light Ion Engine Reinforced Ion Engine Heat Sink Heat Sink Medium Storage Unit Seismic Detector Beam Cannon Mini Grenade Launcher Hammer Peak State ------------ > --- POWER ------------ Reinforced Ion Engine > --- PROPULSION ------- Light Treads Light Treads Light Treads > --- UTILITY ---------- Improved Heat Sink Medium Storage Unit Medium Matter Pod > --- WEAPON ----------- Particle Gun Heavy Assault Rifle > --- INVENTORY -------- Ion Engine Light Treads Heat Sink Medium Storage Unit Seismic Detector Beam Cannon Heavy Assault Rifle Light Cannon Grenade Launcher Hammer [Rating: 15] Favorites ----------- Power Ion Engine Engine Ion Engine Propulsion Light Treads Treads Light Treads Utility Medium Storage Unit Device Improved Heat Sink Storage Medium Storage Unit Protection Light Armor Plating Weapon Assault Rifle Energy Gun Medium Laser Energy Cannon Beam Cannon Ballistic Gun Assault Rifle Ballistic Cannon Light Cannon Impact Weapon Hammer Build | -11 -10 -10 -9 -9 ------- Run | Yrd Mat Min Mat Min Slots Evolved 2 | . . . 2 . Power . | . . . . . Propulsion 1 | . . . 1 . Utility 1 | . . . 1 . Weapon . | . . . . . Parts Attached 63 | 7 12 7 37 . Power 8 | 1 . 2 5 . Engine 8 | 1 . 2 5 . Core . | . . . . . Reactor . | . . . . . Propulsion 23 | 2 2 1 18 . Treads 23 | 2 2 1 18 . Leg . | . . . . . Wheel . | . . . . . Hover . | . . . . . Flight . | . . . . . Utility 16 | 2 8 2 4 . Device 8 | 1 3 2 2 . Storage 7 | 1 5 . 1 . Processor . | . . . . . Hackware . | . . . . . Protection 1 | . . . 1 . Artifact . | . . . . . Weapon 16 | 2 2 2 10 . Energy Gun 6 | 2 . . 4 . Energy Cannon 3 | . 1 . 2 . Ballistic Gun 4 | . . 1 3 . Ballistic Cannon 2 | . . 1 1 . Launcher . | . . . . . Special Weapon . | . . . . . Impact Weapon 1 | . 1 . . . Slashing Weapon . | . . . . . Piercing Weapon . | . . . . . Special Melee Weapon . | . . . . . Unidentified Prototypes 1 | . . . 1 . Parts Lost 15 | . 1 1 9 4 Power 3 | . . 1 1 1 Propulsion 4 | . . . 4 . Utility 5 | . 1 . 2 2 Weapon 3 | . . . 2 1 Highest Loss Streak 4 | . 1 1 3 4 To Critical Strikes . | . . . . . Average Slot Usage (%) 92 | . 97 99 85 75 Engine 12 | . 14 13 10 10 Treads 26 | . 28 28 27 10 Device 10 | . 11 14 8 . Storage 16 | . 14 14 20 21 Energy Gun 5 | . 10 . 5 . Energy Cannon 5 | . 5 9 1 11 Ballistic Gun 6 | . . 13 7 . Ballistic Cannon 3 | . . 4 3 10 Impact Weapon 4 | . 11 . . . Naked Turns . | . . . . . Heaviest Build 29 | 14 21 22 29 27 Greatest Support 60 | 40 40 40 60 20 Greatest Overweight (x) 7 | . . . 7 1 Average Overweight (x) . | . . . . 1 Largest Inventory Capacity 10 | 8 10 10 10 10 Average Capacity 9 | 7 8 10 10 10 Most Carried 10 | 6 9 10 10 9 Average Carried 8 | 4 7 9 8 9 Final Capacity 10 | 8 10 10 10 10 Final Carried 10 | 6 8 10 9 9 Class Distribution -------------------- 60% | Mutant 39% | Scavenger-Mutant Dominant Class ---------------- Mutant | -10/Materials Mutant | -10/Mines Scavenger-Mutant | -9/Materials Scavenger-Mutant | -9/Mines Resources | -11 -10 -10 -9 -9 ----------- Run | Yrd Mat Min Mat Min Matter Collected 1331 | 270 374 187 500 . Remotely . | . . . . . Salvage Created 1927 | 78 595 351 887 16 Parts 112 | 4 36 21 51 . Haulers Intercepted 3 | . 2 . 1 . Recyclers Shooed 1 | . 1 . . . Parts Field Recycled . | . . . . . Retrieved Matter . | . . . . . Parts Self-Destructed . | . . . . . Prevented . | . . . . . Kills | -11 -10 -10 -9 -9 ------- Run | Yrd Mat Min Mat Min Combat Hostiles Destroyed 44 | . 13 10 20 1 Melee 1 | . 1 . . . Guns 23 | . 5 1 17 . Cannons 16 | . 5 9 1 1 AOE 1 | . . . 1 . Classes Destroyed 10 | 2 5 . 2 1 Worker 2 | . 1 1 . . Tunneler 2 | 1 1 . . . Hauler 3 | . 2 . 1 . Recycler 2 | 1 . 1 . . Watcher 6 | . 3 . 3 . Swarmer 12 | . 6 6 . . Grunt 25 | . 7 4 14 . Brawler 2 | . . . 2 . Sentry 4 | . . . 4 . Assembled 1 | . . . . 1 Best Kill Streak 4 | 2 4 3 3 1 Combat Bots Only 4 | . 4 3 3 1 Max Kills in Single Turn 1 | 1 1 1 1 1 Gunslinging . | . . . . . Exploded 1 | . . . 1 . Melee 1 | . 1 . . . Uniques/NPCs Destroyed . | . . . . . Combat | -11 -10 -10 -9 -9 -------- Run | Yrd Mat Min Mat Min Hostile Shots Fired 295 | . 57 57 161 20 Missed 80 | . 15 12 49 4 Damage Taken 2883 | . 405 425 1657 396 Core 543 | . 80 56 284 123 Absorbed by Shields . | . . . . . Core Remaining (%) 72 | 100 . 45 . . Volleys Fired 153 | 4 34 25 88 2 Largest 2 | 2 2 2 2 1 Hottest 113 | 90 90 80 113 68 Shots Fired 248 | 8 46 48 143 3 Gun 181 | 8 30 22 121 . Cannon 67 | . 16 26 22 3 Launcher . | . . . . . Special . | . . . . . Kinetic 113 | . . 27 86 . Thermal 126 | 8 46 21 48 3 Explosive . | . . . . . Electromagnetic 9 | . . . 9 . Robot Hit Streak 10 | 8 8 10 10 3 Robot Miss Streak 9 | . 4 3 9 1 Penetration Max . | . . . . . Secondary Targets 6 | . . . 6 . Max Gunslinging Chain 1 | . . . 1 . Shots Hit Robots 178 | 8 41 30 97 2 Core Hits 73 | 3 17 15 36 2 Critical Kills . | . . . . . Critical Parts Destroyed 3 | . 3 . . . Critical Strikes 7 | . 4 1 2 . Burn 2 | . 1 . 1 . Blast 2 | . . 1 1 . Smash 3 | . 3 . . . Melee Attacks 24 | . 22 2 . . Impact 24 | . 22 2 . . Slashing . | . . . . . Piercing . | . . . . . Sneak Attacks 5 | . 5 . . . Combat Hostiles . | . . . . . Follow-up Attacks . | . . . . . Damage Inflicted 3401 | 97 923 588 1750 43 Guns 1768 | 94 226 149 1299 . Cannons 853 | . 192 393 227 41 Explosions 200 | . . . 200 . Melee 503 | . 503 . . . Ramming 77 | 3 2 46 24 2 Kinetic 1113 | . . 214 899 . Thermal 1395 | 94 418 328 514 41 Explosive 168 | . . . 168 . Electromagnetic 145 | . . . 145 . Impact 503 | . 503 . . . Slashing . | . . . . . Piercing . | . . . . . Highest Corruption 21 | . 2 2 5 21 Average Corruption 2 | . 2 2 5 5 Corruption Purged . | . . . . . Corruption Blocked . | . . . . . Effects 56 | . 11 20 13 12 Message Errors 14 | . 3 3 5 3 Matter Fused 13 | . 2 6 2 3 Heat Flow Errors 8 | . 2 3 2 1 Energy Discharges 5 | . 1 2 . 2 Data Loss (minor) 10 | . 1 3 4 2 Data Loss (major) 1 | . . 1 . . Misfires 2 | . . 1 . 1 Alerts 3 | . 2 1 . . Overload Shots . | . . . . . Overflow Damage 285 | . 181 . 104 . Projectiles . | . . . . . Explosions 104 | . . . 104 . Melee 181 | . 181 . . . Knockbacks 5 | . 4 1 . . Impact 4 | . 4 . . . Kinetic 1 | . . 1 . . Secondary . | . . . . . Self-Inflicted Damage 192 | . . . 192 . Shots 3 | . . . 3 . Rammed 27 | 1 3 7 12 4 Targets Rammed 29 | 1 3 8 13 4 Kicked . | . . . . . Crushed 2 | . . 1 1 . Highest Temperature 312 | 60 167 187 312 249 Average Temperature 71 | 31 53 51 102 85 Received Heat Transfer 839 | . 123 111 585 20 Siege Activations . | . . . . . Robots Corrupted . | . . . . . Combat Hostiles . | . . . . . Parts Fried 12 | . 12 . . . Impact Corruptions 10 | . 10 . . . Robots Melted 1 | . . . 1 . Combat Hostiles 1 | . . . 1 . Parts Melted 5 | . 1 2 2 . Heat Transferred 3310 | 248 1088 703 1197 74 Parts Sabotaged . | . . . . . Parts Stolen . | . . . . . Parts Stripped . | . . . . . Power Chain Reactions 1 | . . . 1 . Alert | -11 -10 -10 -9 -9 ------- Run | Yrd Mat Min Mat Min Peak Influence 359 | 10 164 151 359 104 Initial 104 | . 6 26 1 104 Average 96 | 5 70 67 173 102 Maximum Alert Level 1 | . . . 1 . Low Security (%) 88 | 100 100 100 56 100 Level 1 11 | . . . 43 . Level 2 . | . . . . . Level 3 . | . . . . . Level 4 . | . . . . . Level 5 . | . . . . . High Security . | . . . . . Max Security . | . . . . . Squads Dispatched 7 | . 3 1 3 . Investigation 2 | . 2 . . . Extermination . | . . . . . Reinforcement 4 | . 1 . 3 . Assault 1 | . . 1 . . Garrison . | . . . . . Intercept . | . . . . . Searches Triggered . | . . . . . Construction Impeded . | . . . . . Haulers Reinforced . | . . . . . Active Scanning Responses . | . . . . . Cargo Convoy Interrupts . | . . . . . Stealth | -11 -10 -10 -9 -9 --------- Run | Yrd Mat Min Mat Min Distress Signals 6 | . . . 6 . Communications Jammed . | . . . . . Distress Signals . | . . . . . Times Spotted 79 | . 19 15 34 11 Peak Tracking Total 10 | . 3 4 5 10 Tactical Retreats 5 | . . . 4 1 Traps | -11 -10 -10 -9 -9 ------- Run | Yrd Mat Min Mat Min Traps Triggered 9 | . 2 . 7 . Indirectly . | . . . . . Trap Hack Attempts . | . . . . . Triggered . | . . . . . Disarmed . | . . . . . Reprogrammed . | . . . . . Reused . | . . . . . Traps Extracted . | . . . . . Installed . | . . . . . Triggered . | . . . . . Machines | -11 -10 -10 -9 -9 ---------- Run | Yrd Mat Min Mat Min Machines Disabled 3 | . . . 3 . Max in Single Turn 2 | . . . 2 . Machines Repaired . | . . . . . Machines Dismantled . | . . . . . Machines Sabotaged . | . . . . . Overloaded Fab Kills . | . . . . . Hacking | -11 -10 -10 -9 -9 --------- Run | Yrd Mat Min Mat Min Machines Accessed 7 | . 5 . 2 . Terminals 6 | . 5 . 1 . Fabricators . | . . . . . Repair Stations 1 | . . . 1 . Recycling Units . | . . . . . Scanalyzers . | . . . . . Garrison Access . | . . . . . Total Hacks 23 | . 18 . 5 . Successful 13 | . 9 . 4 . Failed 10 | . 9 . 1 . Catastrophic 2 | . 2 . . . Database Lockouts . | . . . . . Manual 20 | . 18 . 2 . Terminals 20 | . 18 . 2 . Fabricators . | . . . . . Repair Stations 3 | . . . 3 . Recycling Units . | . . . . . Scanalyzers . | . . . . . Garrison Access . | . . . . . Terminal Hacks 5 | . 4 . 1 . Record 1 | . 1 . . . Branch Access Points 2 | . 1 . 1 . Alert Level 2 | . 2 . . . Fabricator Hacks . | . . . . . Repair Station Hacks 2 | . . . 2 . Scan Component 2 | . . . 2 . Recycling Unit Hacks . | . . . . . Scanalyzer . | . . . . . Garrison Access Hacks . | . . . . . Unauthorized Hacks 6 | . 5 . 1 . Terminals 6 | . 5 . 1 . Track 2 | . 2 . . . Botnet 4 | . 3 . 1 . Fabricators . | . . . . . Repair Stations . | . . . . . Recycling Units . | . . . . . Scanalyzers . | . . . . . Garrison Access . | . . . . . Data Cores Recovered . | . . . . . Used . | . . . . . Hacking Detections 6 | . 5 . 1 . Full Trace Events 3 | . 2 . 1 . Feedback Events . | . . . . . Feedback Blocked . | . . . . . Robot Schematics Acquired . | . . . . . Robots Built . | . . . . . Authchips . | . . . . . Time . | . . . . . Total Robot Build Rating . | . . . . . Part Schematics Acquired . | . . . . . Parts Built . | . . . . . Authchips . | . . . . . Time . | . . . . . Total Part Build Rating . | . . . . . Parts Repaired . | . . . . . Time . | . . . . . Parts Recycled . | . . . . . Recycled Matter . | . . . . . Retrieved Matter . | . . . . . Retrieved Components . | . . . . . Parts Scanalyzed . | . . . . . Part Schematics Acquired . | . . . . . Parts Damaged . | . . . . . Bothacking | -11 -10 -10 -9 -9 ------------ Run | Yrd Mat Min Mat Min Used RIF Installer . | . . . . . Robots Hacked . | . . . . . Non-combat . | . . . . . Combat . | . . . . . Robot Hacks Applied . | . . . . . Relay Couplers Released . | . . . . . Fabnet Peak Effective % . | . . . . . Robots Rewired . | . . . . . Allies Hacked . | . . . . . Hacks Repelled . | . . . . . Allies | -11 -10 -10 -9 -9 -------- Run | Yrd Mat Min Mat Min Total Allies 1 | . . 1 . . Largest Group 1 | . . 1 . . Highest-Rated Group 31 | . . 31 . . Highest-Rated Ally 31 | . . 31 . . Total Orders . | . . . . . Ally Attacks 9 | . . 9 . . Total Damage 128 | . . 128 . . Kills 2 | . . 2 . . Allies Corrupted . | . . . . . Allies Melted . | . . . . . Intel | -11 -10 -10 -9 -9 ------- Run | Yrd Mat Min Mat Min Robot Analysis Total . | . . . . . Derelict Logs Recovered 1 | . . 1 . . Drone Launches . | . . . . . Drone Recoveries . | . . . . . Exploration | -11 -10 -10 -9 -9 ------------- Run | Yrd Mat Min Mat Min Turns Passed 4931 | 265 1581 1373 1356 356 Spaces Moved 2476 | 133 855 749 600 139 Core 47 | 2 . . 45 . Treads 2429 | 131 855 749 555 139 Legs . | . . . . . Wheels . | . . . . . Hover . | . . . . . Flight . | . . . . . Fastest Speed 50 | 50 160 160 160 240 Average Speed 167 | 158 160 160 172 240 Slowest Speed 400 | 160 160 160 400 240 Overloaded Moves . | . . . . . Propulsion Burnouts . | . . . . . Robots Hopped . | . . . . . Cave-ins Triggered . | . . . . . Exploration Rate (%) 52 | 10 75 103 43 32 Regions Visited 4 Branch Regions 2 Pre-discovered Areas . | . . . . . Known Exits Taken 2 | . 1 . 1 . Unknown Exits Taken 2 | 1 . 1 . . Scrap Searched 1 | . . 1 . . Spaces Dug 4 | . 4 . . . Terrain Destroyed 53 | . 4 . 49 . Melee 4 | . 4 . . . Projectile . | . . . . . AOE 49 | . . . 49 . Terrain Rammed . | . . . . . Walls Destroyed . | . . . . . Machines Disabled . | . . . . . Actions | -11 -10 -10 -9 -9 --------- Run | Yrd Mat Min Mat Min Total 2957 | 176 987 867 773 154 Wait 137 | 24 27 72 5 9 Move 2472 | 132 854 748 599 139 Hop . | . . . . . Pick Up 39 | 8 15 2 14 . Fast Attach 29 | 5 7 2 15 . Attach 13 | 2 . . 11 . Detach 3 | . 1 . 2 . Swap 21 | . 5 5 11 . Drop 37 | . 19 3 15 . Fire 153 | 4 34 25 88 2 Melee 24 | . 22 2 . . Ram 1 | . . . . 1 Kick . | . . . . . Crush 28 | 1 3 8 13 3 Escape Stasis . | . . . . . Rewire . | . . . . . Trap . | . . . . . Miscellaneous . | . . . . . Route ------- -11/Scrapyard -10/Materials (discovered 5 exits: *Mat x3 / *Min x2) -10/Mines (discovered 3 exits: *Mat x2 / [*Sub]) -9/Materials (discovered 4 exits: *Mat x2 / *Min x2) -9/Mines (discovered 1 exit: [*Zio]) History --------- Turn | Location | Event 15 | -11/Scrapyard | Discovered new exit (range 15) 266 | -11/Scrapyard | Entered Materials 305 | -10/Materials | Build established: Mutant 320 | -10/Materials | Identified exit to Mines 494 | -10/Materials | Discovered new exit (range 14) 849 | -10/Materials | Discovered new exit (range 4) 1096 | -10/Materials | Discovered new exit (range 7) 1847 | -10/Materials | Entered Mines 2196 | -10/Mines | Discovered new exit (range 9) 2231 | -10/Mines | Learned location of 1 exit from Materials 2269 | -10/Mines | Discovered new exit (range 15) 2286 | -10/Mines | Met a Derelict testing a Signal Generator 2565 | -10/Mines | Discovered new exit (range 6) 2662 | -10/Mines | Build established: Scavenger-Mutant 2781 | -10/Mines | Core integrity fell below 50% 3064 | -10/Mines | Build established: Mutant 3220 | -10/Mines | Entered Materials 3220 | -9/Materials | Evolved 2 slots: Propulsion x1, Utility x1 3221 | -9/Materials | Identified exit to Materials 3296 | -9/Materials | Identified exit to Mines 3506 | -9/Materials | Build established: Scavenger-Mutant 4007 | -9/Materials | Core integrity fell below 50% 4479 | -9/Materials | Lost 3 parts (3n) 4569 | -9/Materials | Discovered exit to Materials (range 14) 4576 | -9/Materials | Entered Mines 4676 | -9/Mines | A Derelict revealed a hidden shortcut to a safe place 4894 | -9/Mines | Assembled infested the area 4920 | -9/Mines | System corruption reached 10% 4930 | -9/Mines | Core integrity fell below 20% 4932 | -9/Mines | Destroyed by as-21439 with Assembled Maul Last Messages --------------- 04844_ System corrupted: Matter fused (-9). 04872_ & FPROKW6|F,0F2| ### ##????# #????# ## | | ???????## ##?### #?????# #????# ### # | | ????????#### ##????## #?????# ##???# #?#### | +----------------------------------------------------+ Best States ------------- Heat Dissipation 42 Energy Generation 12 Energy Capacity 265 Matter Stores 400 Matter Capacity 500 Sight Range 16 Terrain Scan Range 16 Terrain Scan Density 10 ECM Strength 1 Armor Coverage 150 Evasion (%) 40 Recoil Reduction 3 Item Schematics ----------------- None Robot Schematics ------------------ None Fabricated ------------ Nothing Alien Tech Used ----------------- None Achievements -------------- None Challenges ------------ None Game ------ Seed ChipHardenedBlade Manual? 0 Play Time 01:38:35 Cumulative 43.4 hours Start 2024.05.02 @ 21:49:48 End 2024.05.05 @ 23:20:05 Sessions 3 Manual Loads 0 Difficulty Rogue Special Mode None Game No. 8 Rogue 4 Adventurer 4 Explorer 0 Win Type - Total 0 Types 0/0/0/0/0/0/0/0/0 Lore% 16 Gallery% 24 Achievement% 19 Wizard Run 0 Options --------- Layout 1 ASCII 0 Keyboard 0 Movement Numpad Keybinds 0 Fullscreen 1 Font 24/Smallcaps Map View 50x35 Zoom Use 0% Tactical HUD 1 Map Filters NONE Filters NONE Steam SD RUN: 16969dde-151e-485a-9041-17a1f6d9f2ac